Cogmind - Beta 13 @@@ ROGUE MODE // 2024.05.20 @ 17:50:11 Player: Lunace Result: Destroyed by G-50 Soldier with Heavy Laser Performance ------------- Evolutions (4) 2000 Regions Visited (15) 3000 Robots Destroyed (95) 475 Value Destroyed (7136) 7136 Prototype IDs (17) 340 Alien Tech Used (0) 0 Bonus (5544) 5544 TOTAL SCORE: 18495 Bonus ------- High Alert Combat Kills 835 Follower Combat Kills 2145 Entered Garrisons 800 Used RIF Installer 2000 Met Data Miner 300 Friendly Fire -536 Cogmind --------- Core Integrity 0/850 Matter 300/300 Energy 93/100 System Corruption 16% Temperature Cool (9) Movement Core (2400) Ox47 Location -5/Proximity Caves Parts ------- > --- POWER (2) -------- (None) > --- PROPULSION (2) --- (None) > --- UTILITY (9) ------ Cargo Storage Unit Improved Weapon Cycler Improved Focal Shield Makeshift Hacking Suite Relay Coupler [NC] (31) Relay Coupler [Sentry] (20) Relay Coupler [Hunter] (14) > --- WEAPON (2) ------- (None) > --- INVENTORY (30) --- Relay Coupler [NC] (28) Relay Coupler [NC] (30) Relay Coupler [NC] (28) Relay Coupler [NC] (33) Relay Coupler [NC] (31) Relay Coupler [NC] (31) Relay Coupler [Swarmer] (39) Relay Coupler [Cutter] (33) Relay Coupler [Cutter] (28) Relay Coupler [Grunt] (30) Relay Coupler [Grunt] (29) Relay Coupler [Grunt] (28) Relay Coupler [Brawler] (30) Relay Coupler [Brawler] (30) Relay Coupler [Duelist] (25) Relay Coupler [Duelist] (25) Relay Coupler [Duelist] (33) Relay Coupler [Sentry] (18) Relay Coupler [Sentry] (21) Relay Coupler [Sentry] (23) Relay Coupler [Demolisher] (22) Relay Coupler [Specialist] (21) Relay Coupler [Hunter] (20) Relay Coupler [Heavy] (14) Improved Plasma Cutter Mace Peak State ------------ > --- POWER ------------ Improved Deuterium Engine Light Antimatter Reactor > --- PROPULSION ------- Improved Heavy Treads > --- UTILITY ---------- Cargo Storage Unit Advanced Phase Shifter Relay Coupler [NC] Relay Coupler [Grunt] Relay Coupler [Sentry] Relay Coupler [Sentry] Relay Coupler [Hunter] Relay Coupler [Heavy] > --- WEAPON ----------- Enhanced Gauss Cannon Force Lance > --- INVENTORY -------- Improved Heavy Treads Relay Coupler [NC] Relay Coupler [NC] Relay Coupler [NC] Relay Coupler [NC] Relay Coupler [NC] Relay Coupler [Swarmer] Relay Coupler [Cutter] Relay Coupler [Cutter] Relay Coupler [Cutter] Relay Coupler [Cutter] Relay Coupler [Grunt] Relay Coupler [Grunt] Relay Coupler [Grunt] Relay Coupler [Brawler] Relay Coupler [Duelist] Relay Coupler [Duelist] Relay Coupler [Duelist] Relay Coupler [Sentry] Relay Coupler [Sentry] Relay Coupler [Sentry] Relay Coupler [Demolisher] Relay Coupler [Specialist] Relay Coupler [Hunter] Relay Coupler [Heavy] Enhanced Gauss Cannon Improved Plasma Cutter Segregator [Rating: 82] Favorites ----------- Power Improved Deuterium Engine Engine Improved Deuterium Engine Power Core Micro Fission Core Reactor Light Antimatter Reactor Propulsion Armored Huge Wheel Treads Improved Heavy Treads Wheel Armored Huge Wheel Utility Relay Coupler [Sentry] Device Improved Hardlight Generator Storage Cargo Storage Unit Processor Improved Corruption Screen Hackware Relay Coupler [Sentry] Protection Improved Light Armor Plating Weapon Improved Remote Datajack Energy Gun Wave Gun Energy Cannon Proton Cannon Ballistic Gun Heavy Assault Rifle Ballistic Cannon Enhanced Gauss Cannon Launcher Heavy Missile Launcher Special Weapon Improved Remote Datajack Impact Weapon Mace Slashing Weapon Segregator Piercing Weapon Force Lance Special Melee Weapon Improved Datajack Build | -11 -10 -9 -8 -8 -8 -8 -7 -7 -6 -6 -6 -6 -6 -6 -5 ------- Run | Yrd Mat Mat Mat Gar Mat Gar Fac Gar Fac Gar Fac Low Low Dat Pro Slots Evolved 8 | . . 2 2 . . . 2 . 2 . . . . . . Power 1 | . . . . . . . . . 1 . . . . . . Propulsion . | . . . . . . . . . . . . . . . . Utility 7 | . . 2 2 . . . 2 . 1 . . . . . . Weapon . | . . . . . . . . . . . . . . . . Parts Attached 185 | 7 1 11 22 13 4 11 10 18 24 42 3 9 6 . 4 Power 24 | 1 . 2 . 1 1 1 2 1 4 5 . 3 2 . 1 Engine 21 | 1 . 2 . 1 1 . 1 1 4 4 . 3 2 . 1 Core 2 | . . . . . . 1 1 . . . . . . . . Reactor 1 | . . . . . . . . . . 1 . . . . . Propulsion 18 | 2 . 2 3 . . 1 1 . 1 4 2 2 . . . Treads 10 | 2 . 2 . . . 1 . . . 4 . 1 . . . Leg . | . . . . . . . . . . . . . . . . Wheel 8 | . . . 3 . . . 1 . 1 . 2 1 . . . Hover . | . . . . . . . . . . . . . . . . Flight . | . . . . . . . . . . . . . . . . Utility 87 | 2 1 3 10 8 3 9 6 8 12 19 1 2 2 . 1 Device 19 | 1 . 2 4 . . . . 3 2 3 . 1 2 . 1 Storage 6 | 1 1 . . . . . 1 1 . 1 1 . . . . Processor 4 | . . . . 2 . 1 . . 1 . . . . . . Hackware 41 | . . . . 4 3 8 4 . 8 13 . 1 . . . Protection 17 | . . 1 6 2 . . 1 4 1 2 . . . . . Artifact . | . . . . . . . . . . . . . . . . Weapon 56 | 2 . 4 9 4 . . 1 9 7 14 . 2 2 . 2 Energy Gun 5 | 1 . 1 . 1 . . . . . . . . 1 . 1 Energy Cannon 4 | . . 2 1 . . . . . . . . . . . 1 Ballistic Gun 2 | 1 . 1 . . . . . . . . . . . . . Ballistic Cannon 23 | . . . 4 1 . . . 6 2 9 . 1 . . . Launcher 5 | . . . 4 . . . 1 . . . . . . . . Special Weapon 7 | . . . . 2 . . . 1 1 3 . . . . . Impact Weapon 1 | . . . . . . . . . . . . . 1 . . Slashing Weapon 1 | . . . . . . . . . . . . 1 . . . Piercing Weapon 5 | . . . . . . . . 2 1 2 . . . . . Special Melee Weapon 3 | . . . . . . . . . 3 . . . . . . Unidentified Prototypes 1 | . . . . . . . 1 . . . . . . . . Parts Lost 39 | . . 4 . . . 1 2 2 2 9 3 9 . . 7 Power 10 | . . . . . . . . . 2 3 . 2 . . 3 Propulsion 6 | . . 1 . . . . . . . 1 . 3 . . 1 Utility 12 | . . 1 . . . 1 1 1 . 4 2 1 . . 1 Weapon 11 | . . 2 . . . . 1 1 . 1 1 3 . . 2 Highest Loss Streak 7 | . . 2 . . . 1 1 1 2 5 3 7 . . 5 To Critical Strikes . | . . . . . . . . . . . . . . . . Average Slot Usage (%) 79 | . 100 93 90 85 81 87 78 78 73 70 74 65 74 73 85 Engine 8 | . 14 11 9 9 9 4 2 7 9 10 6 7 13 13 12 Treads 4 | . 28 22 8 . . 4 5 . . 6 2 2 6 6 5 Wheel 4 | . . . 5 9 9 4 1 7 6 1 8 6 . . . Device 8 | . 14 26 18 9 . . . 10 7 2 3 . 8 13 19 Storage 7 | . 14 11 9 9 9 9 7 7 6 6 5 6 6 6 6 Processor 4 | . . . . 4 9 11 7 7 7 4 . . . . . Hackware 19 | . . . . 1 27 31 30 11 21 22 29 31 33 33 26 Protection 5 | . . 1 21 24 . . 2 9 4 . . . . . . Energy Gun 2 | . 14 3 1 2 9 9 4 . . . . . 4 . 5 Energy Cannon 1 | . . 9 3 . . . . . . . . . . . 5 Ballistic Cannon 3 | . . . 4 3 . . . 8 2 6 6 3 . . . Special Weapon 3 | . . . . 11 9 9 7 1 1 3 . . . . . Naked Turns . | . . . . . . . . . . . . . . . . Heaviest Build 212 | 15 30 40 62 59 39 39 126 194 212 201 180 175 174 167 181 Greatest Support 75 | 40 40 40 40 28 28 70 70 28 28 75 75 75 75 75 75 Greatest Overweight (x) 54 | 1 . . 2 2 1 1 4 6 7 54 5 10 2 2 49 Average Overweight (x) 2 | . . . 1 1 1 . . 4 5 3 4 4 2 2 2 Largest Inventory Capacity 30 | 8 15 15 15 15 15 15 25 30 30 30 30 30 30 30 30 Average Capacity 23 | 7 8 15 15 15 15 15 16 26 30 30 28 30 30 30 30 Most Carried 30 | 3 5 12 15 15 15 15 15 30 30 30 30 30 26 28 30 Average Carried 20 | 2 3 8 12 13 14 14 12 23 25 23 25 28 26 27 27 Final Capacity 30 | 8 15 15 15 15 15 15 25 30 30 30 30 30 30 30 30 Final Carried 30 | 3 4 9 14 15 14 15 11 30 22 29 30 26 26 28 26 Class Distribution -------------------- 35% | Hauler-Mutant 18% | Bothacker-Mutant 17% | Botlord-Mutant 13% | Mutant 9% | Commander-Mutant 5% | Scavenger-Mutant Dominant Class ---------------- Mutant | -10/Materials Mutant | -9/Materials Mutant | -8/Materials Commander-Mutant | -8/Garrison Bothacker-Mutant | -8/Materials Bothacker-Mutant | -8/Garrison Bothacker-Mutant | -7/Factory Mutant | -7/Garrison Botlord-Mutant | -6/Factory Botlord-Mutant | -6/Garrison Hauler-Mutant | -6/Factory Hauler-Mutant | -6/Lower Caves Hauler-Mutant | -6/Lower Caves Hauler-Mutant | -6/Data Miner Hauler-Mutant | -5/Proximity Caves Resources | -11 -10 -9 -8 -8 -8 -8 -7 -7 -6 -6 -6 -6 -6 -6 -5 ----------- Run | Yrd Mat Mat Mat Gar Mat Gar Fac Gar Fac Gar Fac Low Low Dat Pro Matter Collected 5274 | 222 36 331 639 106 277 237 169 1187 443 1003 221 139 146 . 118 Remotely 434 | . . . 328 106 . . . . . . . . . . . Salvage Created 3737 | 36 36 484 584 . 45 98 200 766 127 652 314 39 191 . 165 Parts 169 | 7 2 28 34 . 2 6 6 29 1 34 12 . 3 . 5 Haulers Intercepted 1 | . . 1 . . . . . . . . . . . . . Recyclers Shooed 2 | . . . 1 . . . 1 . . . . . . . . Parts Field Recycled . | . . . . . . . . . . . . . . . . Retrieved Matter . | . . . . . . . . . . . . . . . . Parts Self-Destructed 6 | . . . . . . . . . . . . . . . 6 Prevented 7 | . . . . . . . . . . . . . . . 7 Kills | -11 -10 -9 -8 -8 -8 -8 -7 -7 -6 -6 -6 -6 -6 -6 -5 ------- Run | Yrd Mat Mat Mat Gar Mat Gar Fac Gar Fac Gar Fac Low Low Dat Pro Combat Hostiles Destroyed 75 | . 1 8 19 . . 2 4 21 3 10 3 2 . . 2 Melee 7 | . . . . . . . . 3 1 3 . . . . . Guns 6 | . 1 2 . . . 2 1 . . . . . . . . Cannons 34 | . . 4 6 . . . . 10 2 7 3 1 . . 1 AOE 25 | . . 1 13 . . . 3 8 . . . . . . . Classes Destroyed 17 | 1 1 5 2 . 1 1 1 . 1 3 . . . . 1 Builder 2 | . . . 1 . . . 1 . . . . . . . . Tunneler 3 | 2 . . 1 . . . . . . . . . . . . Hauler 1 | . . 1 . . . . . . . . . . . . . Recycler 6 | . . 1 1 . . . 2 . . . 2 . . . . Minesweeper 1 | . . . . . . . . . . . . . . . 1 Operator 1 | . . . . . 1 . . . . . . . . . . Watcher 4 | . . 2 . . 1 . 1 . . . . . . . . Swarmer 18 | . . 4 6 . . . . 5 . . 3 . . . . Cutter 2 | . . . . . . . . . . 2 . . . . . Saboteur 1 | . . . . . . . . . . 1 . . . . . Grunt 26 | . 1 . 8 . . 1 2 9 . 1 . 2 . . 2 Duelist 3 | . . . 1 . . . 1 1 . . . . . . . Sentry 14 | . . 4 4 . . . . 4 . 2 . . . . . Specialist 2 | . . . . . . 1 . 1 . . . . . . . Hunter 4 | . . . . . . . . . 2 2 . . . . . Programmer 6 | . . . . . . . 1 3 1 1 . . . . . Behemoth 1 | . . . . . . . . . . 1 . . . . . Best Kill Streak 7 | 1 1 3 7 . 1 1 7 5 1 3 3 1 . . 2 Combat Bots Only 6 | . 1 3 6 . . 1 3 5 1 3 3 1 . . 2 Max Kills in Single Turn 3 | 1 1 1 3 . 1 1 3 3 1 1 1 1 . . 1 Gunslinging . | . . . . . . . . . . . . . . . . Exploded 3 | . . 1 3 . . . 1 3 . . . . . . . Melee 1 | . . . . . . . . 1 1 1 . . . . . Uniques/NPCs Destroyed . | . . . . . . . . . . . . . . . . Combat | -11 -10 -9 -8 -8 -8 -8 -7 -7 -6 -6 -6 -6 -6 -6 -5 -------- Run | Yrd Mat Mat Mat Gar Mat Gar Fac Gar Fac Gar Fac Low Low Dat Pro Hostile Shots Fired 1068 | . 2 71 48 6 8 17 38 422 71 240 20 61 . . 64 Missed 330 | . 2 16 20 5 6 4 17 140 13 71 6 13 . . 17 Damage Taken 8899 | . . 638 331 73 72 251 550 1896 884 2146 205 1065 . . 788 Core 1289 | . . 68 53 . 15 51 125 124 104 266 . 355 . . 128 Absorbed by Shields 1478 | . . . 76 8 . 43 . 1225 126 . . . . . . Ignored by Resistances 105 | . . . . . . . . 4 . . . 24 . . 77 Regen/Repaired (Parts) 343 | . . . . . . . . . 4 . 339 . . . . Core Remaining (%) 85 | 100 100 83 . . . 78 . 64 . . . . . . . Volleys Fired 422 | 18 2 29 33 15 28 39 35 80 17 76 8 11 11 . 20 Largest 2 | 1 2 2 2 2 1 1 1 2 1 2 1 2 1 . 2 Hottest 150 | 20 60 112 90 88 81 81 81 114 75 114 57 114 75 . 150 Shots Fired 518 | 18 4 44 45 19 28 39 35 116 17 95 9 15 13 . 21 Gun 115 | 18 4 16 . 2 13 27 11 . . . . . 13 . 11 Cannon 268 | . . 28 31 11 . . . 83 16 65 9 15 . . 10 Launcher 34 | . . . 14 . . . 4 16 . . . . . . . Special 101 | . . . . 6 15 12 20 17 1 30 . . . . . Kinetic 252 | 18 2 10 23 11 . . . 83 16 65 9 15 . . . Thermal 85 | . . . 8 2 13 27 11 . . . . . 13 . 11 Explosive 34 | . . . 14 . . . 4 16 . . . . . . . Electromagnetic 46 | . 2 34 . . . . . . . . . . . . 10 Robot Hit Streak 21 | 4 2 13 13 7 7 9 9 21 3 18 1 8 6 . 4 Robot Miss Streak 5 | 3 1 5 5 1 2 2 2 3 2 5 4 2 1 . 4 Penetration Max . | . . . . . . . . . . . . . . . . Secondary Targets . | . . . . . . . . . . . . . . . . Shots Hit Robots 368 | 13 2 28 23 11 19 17 28 90 26 74 4 11 8 . 14 Core Hits 165 | 2 2 14 29 2 3 3 16 47 2 24 5 8 3 . 5 Critical Kills . | . . . . . . . . . . . . . . . . Critical Parts Destroyed . | . . . . . . . . . . . . . . . . Critical Strikes 23 | . . . . 1 2 . 1 3 2 11 . 2 . . 1 Burn 3 | . . . . . 2 . 1 . . . . . . . . Blast 16 | . . . . 1 . . . 2 1 10 . 2 . . . Corrupt 1 | . . . . . . . . . . . . . . . 1 Impale 3 | . . . . . . . . 1 1 1 . . . . . Melee Attacks 79 | . . . . . . . . 24 22 26 2 5 . . . Thermal 5 | . . . . . . . . . . . . 5 . . . Impact . | . . . . . . . . . . . . . . . . Slashing . | . . . . . . . . . . . . . . . . Piercing 60 | . . . . . . . . 24 8 26 2 . . . . Sneak Attacks 4 | . . . . . . . . 1 1 . 2 . . . . Combat Hostiles 1 | . . . . . . . . 1 . . . . . . . Follow-up Attacks . | . . . . . . . . . . . . . . . . Damage Inflicted 13129 | 165 27 568 1660 165 238 122 1103 4603 822 2311 257 523 177 . 388 Guns 1273 | 165 27 174 . . 238 122 249 . . . . . 177 . 121 Cannons 5492 | . . 360 414 165 . . . 1854 664 1257 107 404 . . 267 Explosions 3923 | . . 34 1235 . . . 854 1800 . . . . . . . Melee 2311 | . . . . . . . . 949 158 1054 150 . . . . Ramming 130 | . . . 11 . . . . . . . . 119 . . . Kinetic 5061 | 165 14 88 343 165 . . . 1854 664 1257 107 404 . . . Thermal 1012 | . . 34 71 . 238 122 249 . . . . . 177 . 121 Explosive 3889 | . . . 1235 . . . 854 1800 . . . . . . . Electromagnetic 726 | . 13 446 . . . . . . . . . . . . 267 Impact . | . . . . . . . . . . . . . . . . Slashing . | . . . . . . . . . . . . . . . . Piercing 2311 | . . . . . . . . 949 158 1054 150 . . . . Highest Corruption 16 | . . . . 1 1 1 . . . 10 10 15 15 15 16 Average Corruption 8 | . . . . 1 1 1 . . . 9 10 12 15 15 15 Corruption Purged . | . . . . . . . . . . . . . . . . Corruption Blocked 9 | . . . . . . . 1 6 2 . . . . . . Effects 175 | . . . . 4 2 5 . . . 39 20 17 33 13 42 Message Errors 35 | . . . . 1 . 1 . . . 6 4 6 5 4 8 Matter Fused 46 | . . . . . 1 3 . . . 13 4 3 10 5 7 Heat Flow Errors 17 | . . . . 2 . . . . . 6 4 1 1 1 2 Energy Discharges 19 | . . . . . . 1 . . . 3 1 1 5 2 6 Parts Fused 3 | . . . . . . . . . . 1 2 . . . . Data Loss (minor) 32 | . . . . . . . . . . 6 3 3 7 . 13 Data Loss (major) 8 | . . . . . 1 . . . . 1 1 2 1 . 2 Misfires 5 | . . . . . . . . . . 2 1 . 2 . . Alerts 8 | . . . . 1 . . . . . 1 . 1 2 1 2 Misdirections 1 | . . . . . . . . . . . . . . . 1 Weapon Failures 1 | . . . . . . . . . . . . . . . 1 Overload Shots . | . . . . . . . . . . . . . . . . Overflow Damage 559 | . . 17 114 . . . 43 82 252 33 . 3 . . 15 Projectiles 312 | . . 17 . . . . . 30 217 33 . . . . 15 Explosions 157 | . . . 114 . . . 43 . . . . . . . . Melee 90 | . . . . . . . . 52 35 . . 3 . . . Knockbacks 34 | . . . 2 . . . . 15 7 5 . 5 . . . Impact 1 | . . . . . . . . . . . . 1 . . . Kinetic 30 | . . . 1 . . . . 14 7 4 . 4 . . . Secondary 3 | . . . 1 . . . . 1 . 1 . . . . . Self-Inflicted Damage 135 | . . . 26 . . . . 109 . . . . . . . Shots 4 | . . . 1 . . . . 3 . . . . . . . Rammed 21 | . . . 2 . . . . . . . . 19 . . . Targets Rammed 21 | . . . 2 . . . . . . . . 19 . . . Kicked . | . . . . . . . . . . . . . . . . Crushed . | . . . . . . . . . . . . . . . . Highest Temperature 475 | . . 13 128 277 222 147 142 475 53 306 241 283 270 252 459 Average Temperature 101 | . . 8 43 77 98 52 43 136 22 104 91 162 110 127 169 Received Heat Transfer 2101 | . . 135 106 16 9 36 120 341 69 564 . 450 . . 255 Effects 6 | . . . . . 1 . . 1 . . . . 1 . 3 Shutdowns 2 | . . . . . . . . 1 . . . . . . 1 Energy Bleed 2 | . . . . . 1 . . . . . . . 1 . . Interference 2 | . . . . . . . . . . . . . . . 2 Siege Activations . | . . . . . . . . . . . . . . . . Robots Corrupted 2 | . . 1 . . . . . . . . . . . . 1 Combat Hostiles 2 | . . 1 . . . . . . . . . . . . 1 Parts Fried 8 | . . 5 . . . . . . . . . . . . 3 Impact Corruptions 1 | . . . . . . . . . . . . 1 . . . Robots Melted . | . . . . . . . . . . . . . . . . Combat Hostiles . | . . . . . . . . . . . . . . . . Parts Melted . | . . . . . . . . . . . . . . . . Heat Transferred 1769 | . . 50 111 . 518 165 407 . . . . . 296 . 222 Parts Sabotaged 6 | . . . . . . . . . . 6 . . . . . Parts Stolen . | . . . . . . . . . . . . . . . . Parts Stripped . | . . . . . . . . . . . . . . . . Power Chain Reactions 1 | . . 1 . . . . . . . . . . . . . Alert | -11 -10 -9 -8 -8 -8 -8 -7 -7 -6 -6 -6 -6 -6 -6 -5 ------- Run | Yrd Mat Mat Mat Gar Mat Gar Fac Gar Fac Gar Fac Low Low Dat Pro Peak Influence 1365 | 10 66 265 375 1193 909 1262 798 1365 759 1118 633 . . . . Initial 716 | . 6 27 40 243 581 590 662 368 716 349 586 . . . . Average 635 | 1 38 105 112 644 700 1083 655 972 606 640 564 . . . . Maximum Alert Level 4 | . . 1 1 4 3 4 3 4 3 4 2 . . . . Low Security (%) 14 | 100 100 82 90 . . . . . . . . . . . . Level 1 5 | . . 17 9 7 . . . . . 12 . . . . . Level 2 45 | . . . . 59 65 5 91 26 73 57 100 . . . . Level 3 22 | . . . . 32 34 34 8 33 26 25 . . . . . Level 4 12 | . . . . 1 . 60 . 38 . 3 . . . . . Level 5 . | . . . . . . . . . . . . . . . . High Security . | . . . . . . . . . . . . . . . . Max Security . | . . . . . . . . . . . . . . . . Squads Dispatched 17 | . 1 . 3 . 2 . 4 . 5 . 2 . . . . Investigation 7 | . 1 . 2 . 1 . 1 . 1 . 1 . . . . Extermination 3 | . . . . . . . 1 . 2 . . . . . . Reinforcement 4 | . . . 1 . . . 1 . 2 . . . . . . Assault 2 | . . . . . . . 1 . . . 1 . . . . Garrison 1 | . . . . . 1 . . . . . . . . . . Intercept . | . . . . . . . . . . . . . . . . Searches Triggered . | . . . . . . . . . . . . . . . . Construction Impeded 1 | . . . 1 . . . . . . . . . . . . Haulers Reinforced . | . . . . . . . . . . . . . . . . Active Scanning Responses . | . . . . . . . . . . . . . . . . Cargo Convoy Interrupts . | . . . . . . . . . . . . . . . . Stealth | -11 -10 -9 -8 -8 -8 -8 -7 -7 -6 -6 -6 -6 -6 -6 -5 --------- Run | Yrd Mat Mat Mat Gar Mat Gar Fac Gar Fac Gar Fac Low Low Dat Pro Distress Signals 10 | . . 1 1 . 1 . 2 . 1 4 . . . . . Communications Jammed . | . . . . . . . . . . . . . . . . Distress Signals . | . . . . . . . . . . . . . . . . Times Spotted 234 | . 2 11 29 1 17 18 30 31 24 54 3 3 . . 11 Peak Tracking Total 8 | . 1 6 7 1 4 5 6 7 4 8 3 3 . . 6 Tactical Retreats 10 | . . 1 1 . . 1 2 1 2 2 . . . . . Traps | -11 -10 -9 -8 -8 -8 -8 -7 -7 -6 -6 -6 -6 -6 -6 -5 ------- Run | Yrd Mat Mat Mat Gar Mat Gar Fac Gar Fac Gar Fac Low Low Dat Pro Traps Triggered 17 | . 1 1 2 2 . 3 . 3 . 4 . 1 . . . Indirectly . | . . . . . . . . . . . . . . . . Trap Hack Attempts . | . . . . . . . . . . . . . . . . Triggered . | . . . . . . . . . . . . . . . . Disarmed . | . . . . . . . . . . . . . . . . Reprogrammed . | . . . . . . . . . . . . . . . . Reused 1 | . . . . . . . . . . . . . . . 1 Traps Extracted . | . . . . . . . . . . . . . . . . Installed 3 | . . . . . . . . . . . . . . . 3 Triggered 1 | . . . . . . . . . . . . . . . 1 Most Traps Carried 3 | . . . . . . . . . . . . . . . 3 Machines | -11 -10 -9 -8 -8 -8 -8 -7 -7 -6 -6 -6 -6 -6 -6 -5 ---------- Run | Yrd Mat Mat Mat Gar Mat Gar Fac Gar Fac Gar Fac Low Low Dat Pro Machines Disabled 36 | . . . 3 3 1 5 2 11 1 9 1 . . . . Max in Single Turn 2 | . . . 1 1 . 1 . 2 . 1 1 . . . . Garrison Access 1 | . . . . . . . . . . . 1 . . . . Garrison Relay 23 | . . . . 6 . 4 . 5 . 8 . . . . . Phase Generator 1 | . . . . . . . . 1 . . . . . . . Machines Repaired . | . . . . . . . . . . . . . . . . Machines Dismantled 6 | . . . . 4 . . . 2 . . . . . . . Machines Sabotaged . | . . . . . . . . . . . . . . . . Overloaded Fab Kills . | . . . . . . . . . . . . . . . . Hacking | -11 -10 -9 -8 -8 -8 -8 -7 -7 -6 -6 -6 -6 -6 -6 -5 --------- Run | Yrd Mat Mat Mat Gar Mat Gar Fac Gar Fac Gar Fac Low Low Dat Pro Machines Accessed 52 | . 1 4 8 5 2 5 9 2 5 2 4 . 1 4 . Terminals 34 | . 1 4 7 5 1 5 4 2 2 2 1 . . . . Fabricators 6 | . . . . . . . 3 . 2 . 1 . . . . Repair Stations 1 | . . . . . . . . . . . 1 . . . . Recycling Units 1 | . . . . . . . 1 . . . . . . . . Scanalyzers . | . . . . . . . . . . . . . . . . Garrison Access 5 | . . . 1 . 1 . 1 . 1 . 1 . . . . Total Hacks 135 | . 5 11 21 13 3 7 18 4 16 5 8 . 1 23 . Successful 79 | . 3 5 13 1 3 4 10 3 8 2 3 . 1 23 . Failed 56 | . 2 6 8 12 . 3 8 1 8 3 5 . . . . Catastrophic 7 | . . 2 . 1 . 1 3 . . . . . . . . Database Lockouts . | . . . . . . . . . . . . . . . . Manual 56 | . 2 6 18 . 2 . 14 1 10 . 3 . . . . Terminals 86 | . 5 11 20 13 2 7 7 4 9 5 3 . . . . Fabricators 14 | . . . . . . . 6 . 6 . 2 . . . . Repair Stations 2 | . . . . . . . . . . . 2 . . . . Recycling Units 4 | . . . . . . . 4 . . . . . . . . Scanalyzers . | . . . . . . . . . . . . . . . . Garrison Access 5 | . . . 1 . 1 . 1 . 1 . 1 . . . . Terminal Hacks 43 | . 1 3 5 1 . 4 . 2 1 2 . . 1 23 . Record 4 | . . . . . . . . . . . . . . 4 . Part Schematic 10 | . . . . . . . . . . . . . . 10 . Robot Schematic 6 | . . . . . . . . . . . . . . 6 . Prototype ID Bank 5 | . 1 1 . . . . . . . . . . . 3 . Open Door 2 | . . . . . . 1 . . . . . . 1 . . Branch Access Points 1 | . . . 1 . . . . . . . . . . . . Emergency Access Points 3 | . . . . . . 1 . 1 . 1 . . . . . Garrison Index 1 | . . . 1 . . . . . . . . . . . . Unreport Threat 1 | . . . 1 . . . . . . . . . . . . Locate Traps 2 | . . 2 . . . . . . . . . . . . . Security Status 1 | . . . 1 . . . . . . . . . . . . Zone Layout 2 | . . . 1 . . . . . 1 . . . . . . Garrison Registry 2 | . . . . 1 . 1 . . . . . . . . . Patrol Navigation 2 | . . . . . . 1 . . . 1 . . . . . Security Stations 1 | . . . . . . . . 1 . . . . . . . Fabricator Hacks 3 | . . . . . . . 2 . 1 . . . . . . Network Status 2 | . . . . . . . 1 . 1 . . . . . . Build 1 | . . . . . . . 1 . . . . . . . . Repair Station Hacks 2 | . . . . . . . . . . . 2 . . . . Scan Component 1 | . . . . . . . . . . . 1 . . . . Repair 1 | . . . . . . . . . . . 1 . . . . Recycling Unit Hacks 1 | . . . . . . . 1 . . . . . . . . Report Inventory 1 | . . . . . . . 1 . . . . . . . . Scanalyzer . | . . . . . . . . . . . . . . . . Garrison Access Hacks 5 | . . . 1 . 1 . 1 . 1 . 1 . . . . Unlock Access 4 | . . . 1 . 1 . 1 . 1 . . . . . . Seal Access 1 | . . . . . . . . . . . 1 . . . . Unauthorized Hacks 25 | . 2 2 7 . 2 . 6 1 5 . . . . . . Terminals 20 | . 2 2 7 . 2 . 2 1 4 . . . . . . Track 1 | . . . . . . . . . 1 . . . . . . Assimilate 1 | . . . 1 . . . . . . . . . . . . Botnet 15 | . 1 2 6 . 1 . 2 1 2 . . . . . . Operators 3 | . 1 . . . 1 . . . 1 . . . . . . Fabricators 3 | . . . . . . . 2 . 1 . . . . . . Report 1 | . . . . . . . 1 . . . . . . . . Liberate 2 | . . . . . . . 1 . 1 . . . . . . Repair Stations . | . . . . . . . . . . . . . . . . Recycling Units 2 | . . . . . . . 2 . . . . . . . . Monitor 1 | . . . . . . . 1 . . . . . . . . Recyclers 1 | . . . . . . . 1 . . . . . . . . Scanalyzers . | . . . . . . . . . . . . . . . . Garrison Access . | . . . . . . . . . . . . . . . . Data Cores Recovered 1 | . . . . . 1 . . . . . . . . . . Used . | . . . . . . . . . . . . . . . . Hacking Detections 41 | . 1 4 7 5 2 4 9 2 4 1 2 . . . . Full Trace Events 8 | . . . . 4 . 1 1 . 1 . 1 . . . . Feedback Events 1 | . . . . 1 . . . . . . . . . . . Corruption 1 | . . . . 1 . . . . . . . . . . . Feedback Blocked . | . . . . . . . . . . . . . . . . Robot Schematics Acquired 6 | . . . . . . . . . . . . . . 6 . Robots Built 2 | . . . . . . . 2 . . . . . . . . Authchips . | . . . . . . . . . . . . . . . . Time 99 | . . . . . . . 99 . . . . . . . . Total Robot Build Rating 4 | . . . . . . . 4 . . . . . . . . Part Schematics Acquired 10 | . . . . . . . . . . . . . . 10 . Parts Built . | . . . . . . . . . . . . . . . . Authchips . | . . . . . . . . . . . . . . . . Time . | . . . . . . . . . . . . . . . . Total Part Build Rating . | . . . . . . . . . . . . . . . . Parts Repaired 1 | . . . . . . . . . . . 1 . . . . Time 26 | . . . . . . . . . . . 26 . . . . Parts Recycled . | . . . . . . . . . . . . . . . . Recycled Matter . | . . . . . . . . . . . . . . . . Retrieved Matter . | . . . . . . . . . . . . . . . . Retrieved Components . | . . . . . . . . . . . . . . . . Parts Scanalyzed . | . . . . . . . . . . . . . . . . Part Schematics Acquired . | . . . . . . . . . . . . . . . . Parts Damaged . | . . . . . . . . . . . . . . . . Bothacking | -11 -10 -9 -8 -8 -8 -8 -7 -7 -6 -6 -6 -6 -6 -6 -5 ------------ Run | Yrd Mat Mat Mat Gar Mat Gar Fac Gar Fac Gar Fac Low Low Dat Pro Used RIF Installer 4 | . . . . 1 . 2 . 1 . . . . . . . Threat Obfuscator 1 | . . . . . . 1 . . . . . . . . . Zone Cloak 1 | . . . . . . . . 1 . . . . . . . Patrol Navigation 1 | . . . . . . 1 . . . . . . . . . Robots Hacked 60 | . . . . . 10 5 15 . 10 20 . . . . . Non-combat 12 | . . . . . 4 . 6 . 2 . . . . . . Combat 48 | . . . . . 6 5 9 . 8 20 . . . . . Robot Hacks Applied 65 | . . . . . 10 6 17 . 10 22 . . . . . parse_system 1 | . . . . . . 1 . . . . . . . . . find_chute 2 | . . . . . . . 2 . . . . . . . . drop_inventory 2 | . . . . . 1 . 1 . . . . . . . . map_route 5 | . . . . . 3 . 1 . 1 . . . . . . spike_heat 1 | . . . . . 1 . . . . . . . . . . amplify_resonance 5 | . . . . . . . 1 . . 4 . . . . . disable_weapons 1 | . . . . . . . 1 . . . . . . . . overwrite_iff 9 | . . . . . . 1 2 . . 6 . . . . . streamctrl_high 1 | . . . . . . 1 . . . . . . . . . formatsys_low 1 | . . . . . . . . . 1 . . . . . . formatsys_high 37 | . . . . . 5 3 9 . 8 12 . . . . . Relay Couplers Released 86 | . . . . 24 . 14 . 20 . 28 . . . . . Machine Destruction 86 | . . . . 24 . 14 . 20 . 28 . . . . . Attached 39 | . . . . 4 3 8 4 . 7 13 . . . . . Fabnet Peak Effective % . | . . . . . . . . . . . . . . . . Robots Rewired 15 | . . . . 7 . 2 . 6 . . . . . . . Allies Hacked . | . . . . . . . . . . . . . . . . Hacks Repelled 1 | . . . . . . . . . 1 . . . . . . Allies | -11 -10 -9 -8 -8 -8 -8 -7 -7 -6 -6 -6 -6 -6 -6 -5 -------- Run | Yrd Mat Mat Mat Gar Mat Gar Fac Gar Fac Gar Fac Low Low Dat Pro Total Allies 69 | . . . 1 8 5 7 13 6 9 19 . . . . 1 Largest Group 11 | . . . 1 7 9 11 6 8 6 8 . . . . 1 Highest-Rated Group 312 | . . . 10 129 165 219 123 166 262 312 . . . . 96 Highest-Rated Ally 96 | . . . 10 25 25 31 32 32 90 80 . . . . 96 Total Orders 15 | . . . 2 . . 2 . 3 6 2 . . . . . STAY 5 | . . . 1 . . . . 1 2 1 . . . . . ROAM 1 | . . . . . . 1 . . . . . . . . . FOLLOW 7 | . . . 1 . . 1 . 2 3 . . . . . . GUARD 1 | . . . . . . . . . . 1 . . . . . AID 1 | . . . . . . . . . 1 . . . . . . Ally Attacks 384 | . . . . 13 59 61 40 71 54 78 . . . . 8 Total Damage 8495 | . . . . 200 1285 1387 828 1350 1416 1761 . . . . 268 Kills 79 | . . . . 1 13 15 7 13 10 18 . . . . 2 Allies Corrupted 2 | . . . . . . . . . 1 1 . . . . . Allies Melted . | . . . . . . . . . . . . . . . . Intel | -11 -10 -9 -8 -8 -8 -8 -7 -7 -6 -6 -6 -6 -6 -6 -5 ------- Run | Yrd Mat Mat Mat Gar Mat Gar Fac Gar Fac Gar Fac Low Low Dat Pro Robot Analysis Total . | . . . . . . . . . . . . . . . . Derelict Logs Recovered 1 | . . . . . . . . . . . . 1 . . . Drone Launches . | . . . . . . . . . . . . . . . . Drone Recoveries . | . . . . . . . . . . . . . . . . Exploration | -11 -10 -9 -8 -8 -8 -8 -7 -7 -6 -6 -6 -6 -6 -6 -5 ------------- Run | Yrd Mat Mat Mat Gar Mat Gar Fac Gar Fac Gar Fac Low Low Dat Pro Turns Passed 14367 | 120 161 694 997 1392 335 1094 843 1754 1509 2341 515 550 807 254 1001 Spaces Moved 6526 | 47 92 288 519 995 226 684 473 805 716 642 217 207 243 80 292 Core 9 | 7 . . . . . . . . . 1 . . . . 1 Treads 2520 | 40 92 288 193 . . 336 381 . . 473 40 63 243 80 291 Legs . | . . . . . . . . . . . . . . . . Wheels 3997 | . . . 326 995 226 348 92 805 716 168 177 144 . . . Hover . | . . . . . . . . . . . . . . . . Flight . | . . . . . . . . . . . . . . . . Fastest Speed 50 | 50 160 160 115 115 115 115 160 160 175 190 175 175 320 320 240 Average Speed 188 | 148 160 160 159 123 115 137 160 174 189 306 201 219 320 320 327 Slowest Speed 2750 | 160 160 160 240 130 115 160 160 190 205 2750 320 320 320 320 2500 Overloaded Moves . | . . . . . . . . . . . . . . . . Propulsion Burnouts . | . . . . . . . . . . . . . . . . Robots Hopped . | . . . . . . . . . . . . . . . . Cave-ins Triggered . | . . . . . . . . . . . . . . . . Exploration Rate (%) 44 | 4 25 24 60 90 26 62 21 94 23 88 7 49 44 70 29 Regions Visited 15 Branch Regions 4 Pre-discovered Areas 2 | . . . . . . . . . . . . 1 . 1 . Known Exits Taken 4 | . . . 1 . 1 . 1 . 1 . . . . . . Unknown Exits Taken 7 | 1 1 1 . . . . . . . . 1 1 1 1 . Scrap Searched 5 | . . . . . . . . . . . . 3 . . 2 Spaces Dug 24 | . . . 10 . . . . 14 . . . . . . . Terrain Destroyed 257 | . . . 116 . 1 . 9 107 8 7 3 5 . . 1 Melee . | . . . . . . . . . . . . . . . . Projectile 49 | . . . 4 . 1 . . 20 8 7 3 5 . . 1 AOE 208 | . . . 112 . . . 9 87 . . . . . . . Terrain Rammed . | . . . . . . . . . . . . . . . . Walls Destroyed . | . . . . . . . . . . . . . . . . Machines Disabled . | . . . . . . . . . . . . . . . . Actions | -11 -10 -9 -8 -8 -8 -8 -7 -7 -6 -6 -6 -6 -6 -6 -5 --------- Run | Yrd Mat Mat Mat Gar Mat Gar Fac Gar Fac Gar Fac Low Low Dat Pro Total 8018 | 76 102 476 643 1135 288 822 541 1003 835 882 282 250 265 81 337 Wait 398 | 2 6 134 38 7 24 55 15 15 35 25 26 . 5 . 11 Move 6514 | 46 91 287 519 994 225 683 473 804 716 641 216 206 242 79 292 Hop . | . . . . . . . . . . . . . . . . Pick Up 159 | 3 1 9 10 26 3 12 3 26 3 34 26 . . . 3 Fast Attach 76 | 7 . 6 9 2 . 4 4 8 8 15 2 4 5 . 2 Attach 79 | . . 2 3 11 2 7 6 4 15 22 1 4 . . 2 Detach 15 | . . . 2 1 . . . . 6 4 . . . 2 . Swap 32 | . 1 3 10 2 2 . . 6 1 5 . 1 1 . . Drop 119 | . 1 6 18 24 4 10 5 14 12 19 1 . 1 . 4 Fire 422 | 18 2 29 33 15 28 39 35 80 17 76 8 11 11 . 20 Melee 79 | . . . . . . . . 24 22 26 2 5 . . . Ram 1 | . . . 1 . . . . . . . . . . . . Kick . | . . . . . . . . . . . . . . . . Crush 19 | . . . . . . . . . . . . 19 . . . Escape Stasis 42 | . . . . . . 12 . 16 . 14 . . . . . Rewire 36 | . . . . 35 . . . . . 1 . . . . . Trap 3 | . . . . . . . . . . . . . . . 3 Miscellaneous 24 | . . . . 18 . . . 6 . . . . . . . Route ------- -11/Scrapyard -10/Materials -9/Materials -8/Materials (discovered 4 exits: *Fac / Sto x2 / Gar) -8/Garrison (discovered 3 exits: *Mat x3) -8/Materials (discovered 4 exits: *Fac x2 / Sto / Gar) -8/Garrison (discovered 3 exits: *Fac x3) -7/Factory (discovered 2 exits: [*Low] / Gar) -7/Garrison (discovered 3 exits: *Fac x3) -6/Factory (discovered 2 exits: *Fac / Gar) -6/Garrison (discovered 3 exits: *Fac x3) -6/Factory -6/Lower Caves -6/Lower Caves -6/Data Miner -5/Proximity Caves History --------- Turn | Location | Event 17 | -11/Scrapyard | Discovered new exit (range 15) 121 | -11/Scrapyard | Entered Materials 258 | -10/Materials | Discovered new exit (range 11) 282 | -10/Materials | Entered another Materials area 282 | -9/Materials | Evolved 2 slots: Utility x2 315 | -9/Materials | Build established: Mutant 841 | -9/Materials | Discovered new exit (range 16) 976 | -9/Materials | Entered another Materials area 976 | -8/Materials | Evolved 2 slots: Utility x2 1193 | -8/Materials | Build established: Scavenger-Mutant 1517 | -8/Materials | Identified exit to Storage 1618 | -8/Materials | Discovered new exit (range 15) 1729 | -8/Materials | Build established: Mutant 1966 | -8/Materials | Identified exit to Garrison 1973 | -8/Materials | Entered Garrison 1973 | -8/Garrison | Discovered recently destroyed garrison 2049 | -8/Garrison | Garrison Relay disabled 2398 | -8/Garrison | Rescued a captive Derelict 2521 | -8/Garrison | Garrison Relay disabled 2542 | -8/Garrison | Build established: Commander-Mutant 2744 | -8/Garrison | Discovered new exit (range 10) 2844 | -8/Garrison | Garrison Relay disabled 2947 | -8/Garrison | Garrison Relay disabled 2987 | -8/Garrison | Garrison Relay disabled 3071 | -8/Garrison | Discovered new exit (range 65) 3071 | -8/Garrison | Discovered new exit (range 24) 3071 | -8/Garrison | Discovered new exit (range 38) 3152 | -8/Garrison | Identified exit to Materials 3272 | -8/Garrison | Installed Relay Interface Framework 3305 | -8/Garrison | Garrison Relay disabled 3365 | -8/Garrison | Entered Materials 3365 | -8/Materials | Accompanied by 7 allies 3397 | -8/Materials | Discovered new exit (range 64) 3470 | -8/Materials | Discovered exit to Storage (range 55) 3525 | -8/Materials | Discovered new exit (range 4) 3560 | -8/Materials | Build established: Bothacker-Mutant 3629 | -8/Materials | Garrison activated, responded to threat 3678 | -8/Materials | Identified exit to Garrison 3700 | -8/Materials | Entered Garrison 3700 | -8/Garrison | Accompanied by 7 allies 3726 | -8/Garrison | Triggered checkpoint 3749 | -8/Garrison | Garrison Relay disabled 3852 | -8/Garrison | Triggered checkpoint 3870 | -8/Garrison | Triggered checkpoint 3889 | -8/Garrison | Triggered checkpoint 3936 | -8/Garrison | Triggered checkpoint 3964 | -8/Garrison | Garrison Relay disabled 3987 | -8/Garrison | Expanded RIF knowledge: Patrol Navigation 4019 | -8/Garrison | Discovered new exit (range 12) 4118 | -8/Garrison | Expanded RIF knowledge: Threat Obfuscation 4127 | -8/Garrison | Discovered new exit (range 12) 4225 | -8/Garrison | Lost 5 allies 4285 | -8/Garrison | Triggered checkpoint 4319 | -8/Garrison | Garrison Relay disabled 4338 | -8/Garrison | Discovered new exit (range 61) 4338 | -8/Garrison | Discovered new exit (range 7) 4338 | -8/Garrison | Discovered new exit (range 54) 4408 | -8/Garrison | Identified exit to Factory 4655 | -8/Garrison | Garrison Relay disabled 4794 | -8/Garrison | Entered Factory 4794 | -7/Factory | Accompanied by 3 allies 4794 | -7/Factory | Evolved 2 slots: Utility x2 5037 | -7/Factory | P-60 Hacker assimilated allied Administrator 4a 5179 | -7/Factory | Discovered new exit (range 15) 5194 | -7/Factory | First assault squad dispatched 5299 | -7/Factory | Fabricated Y-45 Defender (x2) 5316 | -7/Factory | Lost 4 allies 5637 | -7/Factory | Identified exit to Garrison 5637 | -7/Factory | Entered Garrison 5637 | -7/Garrison | Accompanied by 4 allies 5647 | -7/Garrison | Triggered checkpoint 5652 | -7/Garrison | Triggered checkpoint 5865 | -7/Garrison | Triggered checkpoint 5916 | -7/Garrison | Garrison Relay disabled 6007 | -7/Garrison | Garrison Relay disabled 6118 | -7/Garrison | Triggered checkpoint 6121 | -7/Garrison | Triggered checkpoint 6125 | -7/Garrison | Triggered checkpoint 6173 | -7/Garrison | Lost 4 allies 6303 | -7/Garrison | Expanded RIF knowledge: Zone Cloak 6362 | -7/Garrison | Phase Generator disabled 6362 | -7/Garrison | Discovered new exit (range 7) 6413 | -7/Garrison | Triggered checkpoint 6457 | -7/Garrison | Build established: Mutant 6462 | -7/Garrison | Garrison Relay disabled 6697 | -7/Garrison | Triggered checkpoint 6793 | -7/Garrison | Garrison Relay disabled 6907 | -7/Garrison | Discovered new exit (range 13) 6975 | -7/Garrison | Triggered checkpoint 7049 | -7/Garrison | Discovered new exit (range 9) 7062 | -7/Garrison | Learned Factory security intel 7071 | -7/Garrison | Build established: Hauler-Mutant 7097 | -7/Garrison | Triggered checkpoint 7157 | -7/Garrison | Garrison Relay disabled 7391 | -7/Garrison | Entered Factory 7391 | -6/Factory | Evolved 2 slots: Power x1, Utility x1 8050 | -6/Factory | Build established: Botlord-Mutant 8529 | -6/Factory | P-60 Hacker assimilated allied Guardian 5a 8590 | -6/Factory | Discovered new exit (range 16) 8624 | -6/Factory | Identified exit to Factory 8900 | -6/Factory | Identified exit to Garrison 8900 | -6/Factory | Entered Garrison 9002 | -6/Garrison | Spotted B-75 Beast 9014 | -6/Garrison | Destroyed B-75 Beast 9039 | -6/Garrison | Lost 3 allies 9180 | -6/Garrison | Triggered checkpoint 9194 | -6/Garrison | Garrison Relay disabled 9272 | -6/Garrison | Spotted B-75 Beast 9301 | -6/Garrison | Triggered checkpoint 9317 | -6/Garrison | Allies destroyed B-75 Beast 9326 | -6/Garrison | Triggered checkpoint 9350 | -6/Garrison | Lost 3 allies 9392 | -6/Garrison | Triggered checkpoint 9577 | -6/Garrison | Lost 4 allies 9620 | -6/Garrison | Triggered checkpoint 9654 | -6/Garrison | Garrison Relay disabled 9980 | -6/Garrison | Triggered checkpoint 9997 | -6/Garrison | Discovered new exit (range 14) 10270 | -6/Garrison | Found embedded Infiltrators 10276 | -6/Garrison | Triggered checkpoint 10322 | -6/Garrison | Lost 5 parts (1p3u1w) 10340 | -6/Garrison | Lost 4 allies 10358 | -6/Garrison | Garrison Relay disabled 10439 | -6/Garrison | Discovered new exit (range 10) 10491 | -6/Garrison | Garrison Relay disabled 10512 | -6/Garrison | System corruption reached 10% 10550 | -6/Garrison | Garrison Relay disabled 10570 | -6/Garrison | Garrison Relay disabled 10590 | -6/Garrison | Build established: Hauler-Mutant 10607 | -6/Garrison | Garrison Relay disabled 10948 | -6/Garrison | Discovered new exit (range 10) 11062 | -6/Garrison | Triggered checkpoint 11143 | -6/Garrison | Garrison Relay disabled 11241 | -6/Garrison | Entered Factory 11325 | -6/Factory | Repaired Cargo Storage Unit 11565 | -6/Factory | Lost 3 parts (2u1w) 11591 | -6/Factory | First assault squad dispatched 11745 | -6/Factory | Discovered new exit (range 6) 11756 | -6/Factory | Entered Lower Caves 11829 | -6/Lower Caves | Core integrity fell below 50% 12086 | -6/Lower Caves | Lost 7 parts (2p2n1u2w) 12094 | -6/Lower Caves | Core integrity fell below 20% 12270 | -6/Lower Caves | Discovered new exit (range 11) 12306 | -6/Lower Caves | Entered another Lower Caves area 13068 | -6/Lower Caves | Discovered new exit (range 15) 13113 | -6/Lower Caves | Entered Data Miner 13114 | -6/Data Miner | Discovered new exit (range 6) 13175 | -6/Data Miner | Met Data Miner 13239 | -6/Data Miner | Learned location of Section 7 (-2) 13239 | -6/Data Miner | Acquired the access code to Warlord's prototype stash 13294 | -6/Data Miner | Received God Mode back door access code from Data Miner 13367 | -6/Data Miner | Entered Proximity Caves 14229 | -5/Proximity Caves | Escorted by Enhanced Grunt 14368 | -5/Proximity Caves | Destroyed by G-50 Soldier with Heavy Laser Last Messages --------------- 14308_ S-27 Virus destroyed. 14311_ Acquired 15 matter. 14312_ Corrupted VTOL Module self-destruct mechanism malfunctions. 14314_ Corrupted VTOL Module fries itself beyond repair. 14320_ Corrupted Lgt. Nuclear Core self-destruct mechanism malfunctions. 14323_ Corrupted Autogun fries itself beyond repair. 14327_ System corrupted: Component data lost. 14342_ System corrupted: Energy discharge (-132). 14348_ Proton Cannon destroyed. 14351_ Lgt. Angular Momentum Engine destroyed. 14353_ Rnf. Deuterium Engine destroyed. 14353_ Imp. Heavy Treads destroyed. 14353_ Critical hit (Burn: +37). 14363_ Variable Charge Gun destroyed. 14365_ System corrupted: Component data lost. Map ----- +----------------------------------------------------+ | ?????????????????????????????????????????????????? | | ?????????????????????????????????????????????????? | | ?????????????????????????????????????????????????? | | ?????????????????????????????????????????????????? | | ?????????????????????????????????????????????????? | | ?????????????????????????????????????????????????? | | ????????????????????? ???????????????????????????? | | ?????????? ?????????? ???????????????????????????? | | ?????????" ? ??????? ???????????????????????????? | | ????????#" % ?????? #???????????????????????????? | | ?????????" ????? #???????????????????????????? | | ?????????" ????? #???????????????????????????? | | # ####???"T ???? #???????????????????????????? | | # # ??? !???? #???????????????????????????? | | # ???" !%???? #???????#???????????????????? | | # #####""#### #?????? #???????????????????? | | ?# *%]= #?????? #???????????????????? | | ??# !%!%! #?????? #???????????????????? | | ???# ?#!==[ #???????# ##??????????????????? | | ??## ## =*% ####????? #??????????????????? | | ??# """###??# #??????????????????? | | ??# ""### #???????????????????? | | ??# *"" ##??????????????????? | | ??# ## % #??????????????????? | | ??????# ="#gg ##??????????????????? | | ??????# ""#@####???????????????????? | | ??????## "#"## #??????????????????????? | | ???????# ###### #??????????????????????? | | ???????# ## #????# #??????????????????????? | | ?????? ?## ##????# ####???????????????????? | | ???? ??## ##?????# ^^ #???????????????????? | | ??? ### ???#####??????#### #???????????????????? | | ?? ???##?????????????????## #???????????????????? | | ??????????????????????##### ###?????????????????? | | ????????????####?????## ##????????????????? | | ????????????# ##????# #????????????????? | | ????????????# #????# #????????????????? | | ??????####### ##???### ##????????????????? | | ?????## ## # #?????# #?????????????????? | | ????## # ####????## #?????????????????? | | ???## # ##?????### #?????????????????? | | #### ####?????## #?????????????????? | | # #####????## ## #????????????????? | | ## ###### #### ##????????????????? | | #### # ##??###?????????????????? | | ########## # #???????????????????????? | | #???# # ### #??????????????????????? | | ???### # ### #?????????????????????? | | #### # # # ### #?????????????????????? | | # ## ### ##?????????????????????? | +----------------------------------------------------+ Best States ------------- Heat Dissipation 62 Energy Generation 34 Energy Capacity 500 Matter Stores 300 Matter Capacity 300 Sight Range 16 Robot Scan Range 15 Terrain Scan Density 10 Corruption Block 15 Armor Coverage 1200 Resistance: KI 30 Resistance: TH 20 Weapon Cycling 20 Phase Shifting 15 Evasion (%) 55 Recoil Reduction 2 Offensive Hacking 11 Defensive Hacking 12 Relay Coupler Types 5 Relay Coupler Value 108 Item Schematics ----------------- Combat Drone Bay | -6/Data Miner | Free Lgt. Regenerative Plating | -6/Data Miner | Free Enh. Armored Leg | -6/Data Miner | Free Imp. Thermal Defense Suite | -6/Data Miner | Free Enh. Force Rifle | -6/Data Miner | Free Field Propulsion Array | -6/Data Miner | Free Adv. Actuator Array | -6/Data Miner | Free Railgun | -6/Data Miner | Free Adv. Reaction Control System | -6/Data Miner | Free Imp. Remote Shield | -6/Data Miner | Free Robot Schematics ------------------ S-27 Virus | -6/Data Miner | Free M-22 Extractor | -6/Data Miner | Free B-60 Warrior | -6/Data Miner | Free B-48 Gladiator | -6/Data Miner | Free G-50 Soldier | -6/Data Miner | Free A-15 Conveyor | -6/Data Miner | Free Fabricated ------------ Y-45 Defender | x2 | -7/Factory | Preloaded Alien Tech Used ----------------- None Achievements -------------- None Challenges ------------ None Game ------ Seed CoreHardenedOptics Manual? 0 Play Time 01:44:58 Cumulative 200.1 hours Start 2024.05.20 @ 16:05:29 End 2024.05.20 @ 17:50:11 Sessions 1 Manual Loads 0 Difficulty Rogue Special Mode None Game No. 193 Rogue 188 Adventurer 5 Explorer 0 Win Type - Total 3 Types 2/0/0/1/0/0/0/0/0 Lore% 55 Gallery% 77 Achievement% 56 Wizard Run 0 Options --------- Layout 2 ASCII 0 Keyboard 0 Movement Mouse Keybinds 0 Fullscreen 1 Font 24/Terminus Map View 50x44 Zoom Use 0% Tactical HUD 1 Map Filters NONE Filters NONE Steam 1 RUN: 2ebe2bf4-7b30-482b-ac40-a3119e0bb6d7